Cogmind - Beta 17 @@@ ROGUE MODE // 2026.08.07 @ 13:02:39 Player: Lazz Result: Destroyed by G-34 Mercenary with Small Laser Performance ------------- Evolutions (0) 0 Regions Visited (1) 200 Robots Destroyed (8) 40 Value Destroyed (104) 104 Prototype IDs (0) 0 Alien Tech Used (0) 0 Bonus (0) 0 TOTAL SCORE: 344 Bonus ------- None Cogmind --------- Core Integrity 0/250 Matter 300/300 Energy 99/100 System Corruption 0% Temperature Cool (12) Movement Core (100) Ox1 Location -10/Materials Parts ------- > --- POWER (1) -------- (None) > --- PROPULSION (2) --- (None) > --- UTILITY (2) ------ Small Storage Unit > --- WEAPON (2) ------- (None) > --- INVENTORY (8) ---- Wheel Improved Terrain Scanner Terrain Scan Processor Autogun Autogun Autogun Autogun Peak State ------------ > --- POWER ------------ Light Ion Engine > --- PROPULSION ------- Light Treads Light Treads > --- UTILITY ---------- Small Storage Unit Seismic Detector > --- WEAPON ----------- EM Pulse Gun EM Pulse Gun > --- INVENTORY -------- Wheel Improved Terrain Scanner Autogun Autogun Autogun [Rating: 8] Favorites ----------- Power Light Ion Engine Engine Light Ion Engine Propulsion Light Treads Treads Light Treads Utility Small Storage Unit Device Seismic Detector Storage Small Storage Unit Weapon EM Pulse Gun Energy Gun EM Pulse Gun Build | -11 -10 ------- Run | Yrd Mat Slots Evolved . | . . Power . | . . Propulsion . | . . Utility . | . . Weapon . | . . Parts Attached 7 | 7 . Power 1 | 1 . Engine 1 | 1 . Core . | . . Reactor . | . . Propulsion 2 | 2 . Treads 2 | 2 . Leg . | . . Wheel . | . . Hover . | . . Flight . | . . Utility 2 | 2 . Device 1 | 1 . Storage 1 | 1 . Processor . | . . Hackware . | . . Protection . | . . Artifact . | . . Weapon 2 | 2 . Energy Gun 2 | 2 . Energy Cannon . | . . Ballistic Gun . | . . Ballistic Cannon . | . . Launcher . | . . Special Weapon . | . . Impact Weapon . | . . Slashing Weapon . | . . Piercing Weapon . | . . Special Melee Weapon . | . . Unidentified Prototypes . | . . Parts Lost 6 | . 6 Power 1 | . 1 Propulsion 2 | . 2 Utility 1 | . 1 Weapon 2 | . 2 Highest Loss Streak 6 | . 6 To Critical Strikes . | . . Average Backups 3 | . 5 Power . | . . Propulsion . | . 1 Utility 1 | . 1 Weapon 1 | . 3 Tool/Special . | . . Unused Backups 7 | . 7 Power . | . . Propulsion 1 | . 1 Utility 2 | . 2 Weapon 4 | . 4 Tool/Special . | . . Average Slot Usage (%) 91 | . 91 Engine 12 | . 12 Treads 25 | . 25 Device 13 | . 13 Storage 14 | . 14 Energy Gun 23 | . 23 Peak Build Rating 8 | 7 8 Average Rating 6 | 5 7 On Entrance 3 | . 7 Avg Prop Armor Cover (%) . | . . Naked Turns . | . . Heaviest Build 13 | 13 13 Greatest Support 40 | 40 40 Greatest Overweight (x) 1 | . 1 Average Overweight (x) . | . . Largest Inventory Capacity 8 | 8 8 Average Capacity 7 | 7 8 Most Carried 7 | 2 7 Average Carried 4 | . 6 Final Capacity 8 | 8 8 Final Carried 7 | 2 7 Class Distribution -------------------- 100% | Mutant Dominant Class ---------------- Mutant | -10/Materials Resources | -11 -10 ----------- Run | Yrd Mat Matter Collected 270 | 270 . Remotely . | . . Salvage Created 264 | 147 117 Parts 18 | 10 8 Haulers Intercepted . | . . Recyclers Shooed 1 | 1 . Parts Field Recycled . | . . Retrieved Matter . | . . Parts Self-Destructed . | . . Prevented . | . . Parts Restored . | . . Kills | -11 -10 ------- Run | Yrd Mat Combat Hostiles Destroyed 2 | . 2 AOE 2 | . 2 Classes Destroyed 4 | 3 1 Worker 3 | 2 1 Tunneler 2 | 2 . Recycler 1 | 1 . Grunt 2 | . 2 Best Kill Streak 2 | 2 2 Combat Bots Only 2 | . 2 Max Kills in Single Turn 2 | 1 2 Gunslinging . | . . Exploded 2 | . 2 Melee . | . . Uniques/NPCs Destroyed . | . . Combat | -11 -10 -------- Run | Yrd Mat Hostile Shots Fired 122 | . 122 Missed 43 | . 43 Hits 79 | . 79 Projectile 79 | . 79 Damage Taken 747 | . 747 Core 255 | . 255 Absorbed by Shields . | . . Core Remaining (%) 100 | 100 . Volleys Fired 22 | 10 12 Largest 2 | 2 2 Hottest 80 | 80 80 Shots Fired 44 | 20 24 Gun 44 | 20 24 Cannon . | . . Launcher . | . . Special . | . . Kinetic . | . . Thermal . | . . Explosive . | . . Electromagnetic 44 | 20 24 Robot Hit Streak 6 | 6 4 Robot Miss Streak 10 | 2 10 Penetration Max . | . . Secondary Targets . | . . Shots Hit Robots 22 | 12 10 Core Hits 11 | 6 5 Critical Kills . | . . Critical Parts Destroyed . | . . Critical Strikes 2 | 2 . Corrupt 2 | 2 . Melee Attacks . | . . Impact . | . . Slashing . | . . Piercing . | . . Sneak Attacks . | . . Combat Hostiles . | . . Follow-up Attacks . | . . Damage Inflicted 434 | 206 228 Guns 294 | 165 129 Cannons . | . . Explosions 140 | 41 99 Melee . | . . Ramming . | . . Kinetic . | . . Thermal 140 | 41 99 Explosive . | . . Electromagnetic 294 | 165 129 Impact . | . . Slashing . | . . Piercing . | . . Highest Corruption . | . . Average Corruption . | . . Corruption Purged . | . . Corruption Blocked . | . . Overload Shots . | . . Overflow Damage . | . . Projectiles . | . . Explosions . | . . Melee . | . . Knockbacks . | . . Impact . | . . Kinetic . | . . Secondary . | . . Self-Inflicted Damage . | . . Shots . | . . Rammed . | . . Targets Rammed . | . . Kicked . | . . Crushed . | . . Highest Temperature 153 | 90 153 Average Temperature 50 | 33 62 Received Heat Transfer 171 | . 171 Siege Activations . | . . Martial Activations . | . . Shielding Activations . | . . Robots Disrupted . | . . Combat Hostiles . | . . Robots Corrupted . | . . Combat Hostiles . | . . Parts Fried 1 | 1 . Impact Corruptions . | . . Robots Melted . | . . Combat Hostiles . | . . Parts Melted . | . . Heat Transferred 100 | 50 50 Parts Sabotaged . | . . Parts Stolen . | . . Parts Stripped . | . . Power Chain Reactions 3 | 1 2 Alert | -11 -10 ------- Run | Yrd Mat Maximum Alert Level . | . . Low Security (%) 100 | 100 100 Level 1 . | . . Level 2 . | . . Level 3 . | . . Level 4 . | . . Level 5 . | . . High Security . | . . Max Security . | . . Peak Influence 55 | 10 55 Initial 6 | . 6 Average 8 | 2 11 Influence Increases 103 | 25 78 Destroy 0b10 Robot/C 40 | . 40 Destroy 0b10 Robot/NC 30 | 25 5 Destroy Leader 10 | . 10 Destroy Structure 8 | . 8 Lose Combat Pursuer 15 | . 15 Influence Decreases 88 | 15 73 Entered New Map 4 | . 4 Time Decay 51 | 15 36 Lost Part 33 | . 33 Squads Dispatched 3 | . 3 Investigation 1 | . 1 Extermination . | . . Reinforcement 2 | . 2 Assault . | . . Garrison . | . . Intercept . | . . Searches Triggered . | . . Construction Impeded . | . . Haulers Reinforced . | . . Active Scanning Responses . | . . Cargo Convoy Interrupts . | . . Stealth | -11 -10 --------- Run | Yrd Mat Distress Signals 1 | . 1 Communications Jammed . | . . Distress Signals . | . . Times Spotted 12 | . 12 Peak Tracking Total 5 | . 5 Tactical Retreats 1 | . 1 Traps | -11 -10 ------- Run | Yrd Mat Traps Triggered 1 | . 1 Indirectly . | . . Trap Hack Attempts . | . . Triggered . | . . Disarmed . | . . Reprogrammed . | . . Reused . | . . Traps Extracted . | . . Installed . | . . Triggered . | . . Machines | -11 -10 ---------- Run | Yrd Mat Machines Disabled . | . . Max in Single Turn . | . . Machines Repaired . | . . Machines Dismantled . | . . Machines Sabotaged . | . . Overloaded Fab Kills . | . . Hacking | -11 -10 --------- Run | Yrd Mat Machines Accessed . | . . Terminals . | . . Fabricators . | . . Repair Stations . | . . Recycling Units . | . . Scanalyzers . | . . Garrison Access . | . . Total Hacks . | . . Successful . | . . Failed . | . . Catastrophic . | . . Database Lockouts . | . . Manual . | . . Terminals . | . . Fabricators . | . . Repair Stations . | . . Recycling Units . | . . Scanalyzers . | . . Garrison Access . | . . Terminal Hacks . | . . Fabricator Hacks . | . . Repair Station Hacks . | . . Recycling Unit Hacks . | . . Scanalyzer . | . . Garrison Access Hacks . | . . Unauthorized Hacks . | . . Terminals . | . . Fabricators . | . . Repair Stations . | . . Recycling Units . | . . Scanalyzers . | . . Garrison Access . | . . Data Cores Recovered . | . . Used . | . . Hacking Detections . | . . Full Trace Events . | . . Feedback Events . | . . Feedback Blocked . | . . Robot Schematics Acquired . | . . Robots Built . | . . Authchips . | . . Time . | . . Total Robot Build Rating . | . . Part Schematics Acquired . | . . Parts Built . | . . Authchips . | . . Time . | . . Total Part Build Rating . | . . Part Studies Acquired . | . . Parts Repaired . | . . Time . | . . Parts Recycled . | . . Recycled Matter . | . . Retrieved Matter . | . . Retrieved Components . | . . Parts Scanalyzed . | . . Part Schematics Acquired . | . . Parts Damaged . | . . Bothacking | -11 -10 ------------ Run | Yrd Mat Used RIF Installer . | . . Robots Hacked . | . . Non-combat . | . . Combat . | . . Robot Hacks Applied . | . . Relay Couplers Released . | . . Fabnet Peak Effective % . | . . Robots Rewired . | . . Allies Hacked . | . . Hacks Repelled . | . . Allies | -11 -10 -------- Run | Yrd Mat Total Allies . | . . Largest Group . | . . Highest-Rated Group . | . . Highest-Rated Ally . | . . Total Orders . | . . Ally Attacks . | . . Total Damage . | . . Kills . | . . Allies Corrupted . | . . Allies Melted . | . . Intel | -11 -10 ------- Run | Yrd Mat Active Infowar (turns) 200 | 26 174 Seismic 200 | 26 174 Robot Analysis Total . | . . Derelict Logs Recovered . | . . Drone Launches . | . . Drone Recoveries . | . . Exploration | -11 -10 ------------- Run | Yrd Mat Turns Passed 306 | 117 189 Spaces Moved 146 | 51 95 Core 21 | 5 16 Treads 125 | 46 79 Legs . | . . Wheels . | . . Hover . | . . Flight . | . . Fastest Speed 50 | 50 100 Average Speed 149 | 149 149 Slowest Speed 160 | 160 160 Overloaded Moves . | . . Propulsion Burnouts . | . . Robots Hopped . | . . Potential Cave-ins . | . . Cave-ins Triggered . | . . Exploration Rate (%) 16 | 4 28 Regions Visited 1 Branch Regions . Pre-discovered Areas . | . . Known Exits Taken . | . . Unknown Exits Taken 1 | 1 . Scrap Searched . | . . Spaces Dug . | . . Terrain Destroyed 8 | . 8 Melee . | . . Projectile . | . . AOE 8 | . 8 Terrain Rammed . | . . Walls Destroyed . | . . Machines Disabled . | . . Actions | -11 -10 --------- Run | Yrd Mat Total 187 | 69 118 Wait 6 | . 6 Move 145 | 50 95 Hop . | . . Pick Up 7 | 2 5 Fast Attach 7 | 7 . Attach . | . . Detach . | . . Swap . | . . Drop . | . . Fire 22 | 10 12 Melee . | . . Ram . | . . Kick . | . . Crush . | . . Escape Stasis . | . . Rewire . | . . Trap . | . . Miscellaneous . | . . Route ------- -11/Scrapyard -10/Materials (discovered 1 exit: [*Mat]) History --------- Turn | Location | Event 3 | -11/Scrapyard | Discovered new exit (range 15) 118 | -11/Scrapyard | Entered Materials 293 | -10/Materials | Core integrity fell below 50% 303 | -10/Materials | Discovered new exit (range 16) 305 | -10/Materials | Core integrity fell below 20% 307 | -10/Materials | Destroyed by G-34 Mercenary with Small Laser Last Messages --------------- 00269_ U-05 Engineer builds a Wall. 00273_ U-05 Engineer lays Concrete. 00275_ EM Pulse Gun destroyed. 00275_ U-05 Engineer lays Concrete. 00277_ EM Pulse Gun destroyed. 00279_ U-05 Engineer lays Concrete. 00283_ Lgt. Ion Engine destroyed. 00284_ U-05 Engineer lays Concrete. 00284_ U-05 Engineer builds a Wall. 00285_ U-05 Engineer lays Concrete. 00286_ U-05 Engineer builds a Wall. 00289_ Lgt. Treads destroyed. 00292_ Seismic Detector destroyed. 00294_ G-34 Mercenary destroyed. 00299_ S-10 Pest destroyed. 00300_ Triggered Alarm Trap. 00300_ An alarm sounds. 00300_ ALERT: Alarm triggered, dispatching investigation squad. 00303_ EXIT=FOUND Map ----- +----------------------------------------------------+ | # #== #? | | # """ #!% #? | | + """ # #? | | #?""" ?# #? | | ^ ??""" ?# #? | | ??????? ?? ??# #? | | ??????????? ?? ??#%= #? | | ?????????????????? ???#! #? | | ??????????????????????# % #? | | ??????????????????????# #? | | ??????????????????????# #? | | ??????????????????????# #? | | ??????????????????????# #? | | ??????????????????????# #? | | ??????????????????????# #? | | ??????????????????????+ #? | | ??????????????????????# #? | | ??????????????????????# #? | | ??????????????????????# #? | | ??????????????????????# #? | | ??????????????????????# #? | | ??????????????????????# #? | | ??????????????????????# #? | | ??????????????????????# #? | | ??????????????????????# #? | | ??????????????????????+ @#? | | ??????????????????????# a #? | | ??????????????????????# #? | | ??????????????????????# #? | | ??????????????????????# #? | | ??????????????????????# #? | | ??????????????????????# #? | | ??????????????????????# g #? | | ??????????????????????#g #? | | ??????????????????????# ?? | | ??????????????????????# ?? | | ??????????????????????# < ?? | | ??????????????????????# ?? | | ??????????????????????####?? | | ???????????????????????????? | | ???????????????????????????? | | ???????????????????????????? | | ???????????????????????????? | | | | | | | | | | | | | | | +----------------------------------------------------+ Best States ------------- Heat Dissipation 25 Energy Generation 10 Energy Capacity 125 Matter Stores 300 Matter Capacity 300 Sight Range 16 Terrain Scan Density 10 Evasion (%) 40 Recoil Reduction 2 Item Schematics ----------------- None Robot Schematics ------------------ None Fabricated ------------ Nothing Repaired ---------- Nothing Studied --------- None Alien Tech Used ----------------- None Achievements -------------- None Challenges ------------ None Game ------ Seed IntegratedPhasingPurifier Manual? 0 Play Time 00:03:35 Cumulative 252.1 hours Start 2026.08.07 @ 13:00:16 End 2026.08.07 @ 13:02:39 Sessions 1 Manual Loads 0 Difficulty Rogue Special Mode None Game No. 332 Rogue 332 Adventurer 0 Explorer 0 Win Type - Total 4 Types 3/0/0/1/0/0/0/0/0/0 Lore% 78 Gallery% 65 Achievement% 53 Wizard Run 0 Options --------- Layout 2 ASCII 0 Keyboard 0 Movement Vi Keybinds 0 Fullscreen 1 Font 24/Smallcaps Map View 50x44 Zoom Use 0% Tactical HUD 1 Map Filters NONE Filters NONE Steam 1 RUN: c8ad0ba2-8bf3-4cc8-b85c-6570d4fcf65f